bitfinex/quotes_ETHUSD_20250806
["timestamp","ask_amount","ask_price","bid_price","bid_amount"]
[1754465734832,0.4643,3640.9,3640.8,1.31202372]
[1754465735139,0.3,3640.9,3640.8,1.31202372]
[1754465735600,1.2224,3640.9,3640.8,1.31202372]
[1754465737128,0.3,3640.9,3640.8,1.31202372]
[1754465737333,2.484,3640.9,3640.8,1.31202372]
[1754465737839,2.483,3640.9,3640.8,4.0586728]
[1754465738022,0.3,3640.9,3640.8,4.0586728]
[1754465738464,2.483,3640.9,3640.8,4.0586728]
[1754465739623,0.7643,3640.9,3640.8,1.31202372]
[1754465739820,2.9473,3640.9,3640.8,1.31202372]
[1754465740852,3.3908,3640.9,3640.8,1.31202372]
[1754465742353,3.3918,3640.9,3640.8,1.31202372]
[1754465743254,1.2088,3640.9,3640.8,1.31202372]
[1754465743570,3.9388,3640.9,3640.8,1.31202372]
[1754465743728,6.68537364,3640.9,3640.8,1.31202372]
[1754465743922,4.50537364,3640.9,3640.8,1.31202372]
[1754465744147,1.7588,3640.9,3640.8,1.31202372]
[1754465744464,3.9388,3640.9,3640.8,1.31202372]
[1754465745829,7.2358,3640.9,3640.8,1.31202372]
[1754465746024,4.5078,3640.9,3640.8,1.31202372]
[1754465746332,3.6,3640.9,3640.8,4.0586728]
[1754465746540,3.6,3640.9,3640.8,4.92004008]
[1754465746741,5.778,3640.9,3640.8,4.92004008]
[1754465747257,5.778,3640.9,3640.8,4.46474008]
[1754465747458,3.6,3640.9,3640.8,4.46474008]
[1754465747669,5.477,3640.9,3640.8,5.37144008]
[1754465748772,5.477,3640.9,3640.8,4.92004008]
[1754465748975,5.477,3640.9,3640.8,4.46474008]
[1754465749181,5.477,3640.9,3640.8,4.0586728]
[1754465749324,5.9636,3640.9,3640.8,1.31202372]
[1754465749644,6.4071,3640.9,3640.8,1.31202372]
[1754465751157,7.2571,3640.9,3640.8,1.31202372]
[1754465752659,7.2571,3640.9,3640.5,2.74885265]
[1754465752960,0.1376,3640.6,3640.5,2.74885265]
[1754465753162,2.3126,3640.6,3640.5,2.74885265]
[1754465753376,2.6126,3640.6,3640.5,2.74885265]
[1754465754263,0.4376,3640.6,3640.5,2.74885265]
[1754465754450,2.475,3640.6,3640.5,2.74885265]
[1754465755160,0.3,3640.6,3640.5,3.4436011]
[1754465755529,3.3,3640.9,3640.8,2.74664908]
[1754465755774,5.473,3640.9,3640.8,2.74664908]
[1754465755948,5.773,3640.9,3640.8,2.88424908]
[1754465756482,5.772,3640.9,3640.8,2.88424908]
[1754465758790,5.772,3640.9,3640.8,4.1962728]
[1754465759185,2.473,3640.9,3640.8,4.1962728]
[1754465760189,0.301,3640.9,3640.8,4.1962728]
[1754465760342,2.471,3640.9,3640.8,4.1962728]
[1754465761287,3.4011,3640.9,3640.8,1.44962372]
[1754465761652,3.5387,3640.9,3640.8,1.31202372]
[1754465761852,3.5387,3640.9,3640.8,4.0586728]
[1754465762274,1.3687,3640.9,3640.8,1.31202372]
[1754465762493,3.5367,3640.9,3640.8,1.31202372]
[1754465763001,3.5367,3640.9,3640.8,4.0586728]
[1754465763355,2.6066,3640.9,3640.8,4.0586728]
[1754465763599,2.6066,3640.9,3640.8,1.31202372]
[1754465763769,3.0932,3640.9,3640.8,1.31202372]
[1754465763967,3.5367,3640.9,3640.8,1.31202372]
[1754465764481,3.5367,3640.9,3640.7,2.74670147]
[1754465764793,0.4866,3640.8,3640.7,2.74670147]
[1754465765514,2.7501,3640.9,3640.8,2.74664908]
[1754465765794,2.7501,3640.9,3640.7,2.74669489]
[1754465766158,0.4866,3640.8,3640.6,2.74677948]
[1754465766357,0.4866,3640.8,3640.5,4.06087833]
[1754465766558,0.4435,3640.8,3640.5,4.06087833]
[1754465766797,0.4866,3640.7,3640.5,4.06087833]
[1754465766984,0.9301,3640.7,3640.5,4.06087833]
[1754465767156,0.9301,3640.6,3640.5,1.31402372]
[1754465767859,1.0677,3640.6,3640.5,1.31402372]
[1754465769007,3.2307,3640.6,3640.5,1.31402372]
[1754465769362,3.5307,3640.6,3640.5,1.31402372]
[1754465769598,3.5307,3640.6,3640.5,0.002]
[1754465770120,6.27749997,3640.6,3640.5,0.002]
[1754465770391,3.5307,3640.6,3640.5,0.002]
[1754465771368,2.6006,3640.6,3640.5,0.002]
[1754465771692,3.5746,3640.6,3640.5,0.002]
[1754465773002,29.84642941,3640.6,3640.5,0.002]
[1754465773294,9.73279997,3640.6,3640.5,0.002]
[1754465775432,7.57079997,3640.6,3640.5,0.002]
[1754465775589,9.73079997,3640.6,3640.5,0.002]
[1754465777082,7.57079997,3640.6,3640.5,0.002]
[1754465777283,6.5088,3640.6,3640.5,0.002]
[1754465777526,4.3498,3640.6,3640.5,0.002]
[1754465777726,6.5088,3640.6,3640.5,0.002]
[1754465778399,9.72979997,3640.6,3640.5,0.002]
[1754465779112,6.983,3640.6,3640.5,0.002]
[1754465780402,6.981,3640.6,3640.5,0.002]
[1754465780686,0.4998,3640.6,3640.5,0.002]
[1754465781098,2.156,3640.6,3640.5,0.002]
[1754465782318,2.455,3640.6,3640.5,0.002]
[1754465783122,2.5926,3640.6,3640.5,0.002]
[1754465783423,0.3,3640.6,3640.5,0.002]
[1754465783723,2.455,3640.6,3640.5,3.23477542]
[1754465783928,2.455,3640.6,3640.5,0.002]
[1754465785314,3.429,3640.6,3640.5,0.002]
[1754465786047,6.17579997,3640.6,3640.5,0.002]
[1754465786193,6.31339997,3640.6,3640.5,0.002]
[1754465787723,3.5666,3640.6,3640.5,0.002]
[1754465788641,0.4376,3640.6,3640.5,0.002]
[1754465788808,2.452,3640.6,3640.5,3.66227542]
[1754465789002,2.452,3640.6,3640.5,3.23477542]
[1754465789336,2.452,3640.6,3640.5,2.74887542]
[1754465790429,2.452,3640.6,3640.5,0.002]
[1754465790930,2.452,3640.6,3640.5,2.74887542]
[1754465791238,0.3,3640.6,3640.5,2.74887542]
[1754465791406,2.451,3640.6,3640.5,2.74887542]
[1754465791938,2.451,3640.6,3640.5,0.002]
[1754465792388,2.451,3640.6,3640.5,2.74887542]
[1754465792694,2.451,3640.6,3640.5,0.002]
[1754465793702,2.451,3640.6,3640.5,2.74887542]
[1754465794056,0.3,3640.6,3640.5,2.74887542]
[1754465794251,2.448,3640.6,3640.5,3.23477542]
[1754465794483,2.448,3640.6,3640.5,0.002]
[1754465794891,3.122,3640.6,3640.5,0.002]
[1754465795050,6.55639997,3640.6,3640.5,0.002]
[1754465795261,3.8096,3640.6,3640.5,0.002]
[1754465795490,6.55639997,3640.6,3640.5,0.002]
[1754465796196,9.55639997,3640.6,3640.5,0.002]
[1754465801110,7.40839997,3640.6,3640.5,0.002]
[1754465801306,9.55339997,3640.6,3640.5,0.002]
[1754465802219,6.29687542,3640.5,3640.4,0.002]
[1754465802516,7.22147542,3640.5,3640.4,0.002]
[1754465802695,6.29687542,3640.5,3640.4,0.002]
[1754465802874,7.22147542,3640.5,3640.4,0.002]
[1754465803692,3.29702634,3640.3,3640.2,0.002]
[1754465803893,28.55365578,3640.3,3640.2,0.002]
[1754465804089,29.00375578,3640.3,3640.2,0.002]
[1754465804293,6.2971018,3640.2,3640.1,1e-08]
[1754465804514,6.4347018,3640.2,3640.1,1e-08]
[1754465804694,7.3593018,3640.2,3640.1,1e-08]
[1754465805581,9.5043018,3640.2,3640.1,1e-08]
[1754465806491,9.5033018,3640.2,3640.1,1e-08]
[1754465807293,9.5023018,3640.2,3640.1,1e-08]
[1754465807822,6.6717018,3640.2,3640.1,1e-08]
[1754465808010,31.59043124,3640.2,3640.1,1e-08]
[1754465808390,32.06493124,3640.2,3640.1,1e-08]
[1754465808623,32.61493124,3640.2,3640.1,1e-08]
[1754465810086,29.99743124,3640.2,3640.1,1e-08]
[1754465810435,32.14043124,3640.2,3640.1,1e-08]
[1754465810602,32.61493124,3640.2,3640.1,1e-08]
[1754465813104,8.5757018,3640.2,3640.1,1e-08]
[1754465813705,6.4347018,3640.2,3640.1,1e-08]
[1754465813922,11.8757018,3640.2,3640.1,1e-08]
[1754465814233,11.8757018,3640.2,3640.1,0.48320001]
[1754465814733,11.8757018,3640.2,3640.1,1e-08]
[1754465814911,9.1276,3640.2,3640.1,1e-08]
[1754465815330,11.8747018,3640.2,3640.1,1e-08]
[1754465816730,11.8747018,3640.2,3640.1,0.48320001]
[1754465816925,9.7347018,3640.2,3640.1,1e-08]
[1754465817235,9.1266,3640.2,3640.1,1e-08]
[1754465817413,11.8737018,3640.2,3640.1,1e-08]
[1754465817938,9.1266,3640.2,3640.1,0.48320001]
[1754465818226,6.9876,3640.2,3640.1,0.48320001]
[1754465818432,6.3,3640.2,3640.1,0.48320001]
[1754465818728,6.4376,3640.2,3640.1,0.48320001]
[1754465818929,3.4376,3640.2,3640.1,0.92220001]
[1754465819096,8.5756,3640.2,3640.1,0.92220001]
[1754465819292,3.4376,3640.2,3640.1,3.66937728]
[1754465819515,5.5756,3640.2,3640.1,4.31124701]
[1754465820036,5.5756,3640.2,3640.1,1.56406974]
[1754465820201,5.5756,3640.2,3640.1,0.92220001]
[1754465820809,5.5756,3640.2,3640.1,3.66937728]
[1754465821013,3.4376,3640.2,3640.1,3.66937728]
[1754465821210,3.3,3640.2,3640.1,3.66937728]
[1754465821507,0.1376,3640.5,3640.4,2.74695088]
[1754465821847,0.001,3640.9,3640.8,2.74664908]
[1754465822049,2.139,3640.9,3640.8,2.74664908]
[1754465822195,2.139,3640.9,3640.8,3.66884908]
[1754465822539,2.138,3640.9,3640.8,3.66884908]
[1754465822744,2.138,3640.9,3640.8,4.58509529]
[1754465822949,2.138,3640.9,3640.8,4.72269529]
[1754465823159,2.438,3640.9,3640.8,4.72269529]
[1754465823825,2.137,3640.9,3640.8,4.72269529]
[1754465825347,0.001,3640.9,3640.8,4.72269529]
[1754465825518,2.137,3640.9,3640.8,4.72269529]
[1754465825720,0.001,3640.9,3640.8,4.72269529]
[1754465825921,2.137,3640.9,3640.8,4.72269529]
[1754465826322,0.001,3640.9,3640.8,4.72269529]
[1754465826527,2.136,3640.9,3640.8,4.72269529]
[1754465829930,2.135,3640.9,3640.8,4.72269529]
[1754465833763,0.001,3640.9,3640.8,4.72269529]
[1754465833966,0.001,3640.9,3640.8,27.86279122]
[1754465834155,0.001,3641.1,3641.0,2.74649821]
[1754465834466,0.001,3641.1,3641.0,5.47516007]
[1754465834773,0.001,3641.1,3641.0,6.36076007]
[1754465835130,0.001,3641.1,3641.0,6.49836007]
[1754465838457,0.001,3641.3,3641.2,2.74634735]
[1754465838861,0.001,3641.3,3641.2,3.76954735]
[1754465839119,0.001,3641.3,3641.2,4.69401809]
[1754465840212,1e-08,3641.3,3641.2,27.834111]
[1754465840513,1e-08,3641.7,3641.6,2.74604569]
[1754465840712,1e-08,3641.9,3641.8,28.85852432]
[1754465840912,0.001,3642.2,3642.1,2.7456687]
[1754465841513,0.001,3642.2,3642.1,2.8832687]
[1754465841696,0.001,3642.2,3642.1,3.7688687]
[1754465843508,0.001,3642.2,3642.1,6.7688687]
[1754465843726,0.001,3642.6,3642.3,2.74551794]
[1754465843880,0.001,3642.6,3642.3,3.8345566]
[1754465844078,0.001,3642.6,3642.3,4.7201566]
[1754465845177,0.9234,3642.4,3642.3,3.8345566]
[1754465846897,0.9234,3642.4,3642.3,2.88311794]
[1754465847114,0.9234,3642.4,3642.3,0.1376]
[1754465847516,0.9234,3642.4,3642.3,2.88311794]
[1754465850015,0.9234,3642.4,3642.0,2.74573187]
[1754465850016,0.9234,3642.4,3642.0,2.74568808]
[1754465850336,0.9224,3642.3,3642.0,2.88328808]
[1754465850534,0.9224,3642.3,3642.0,0.1376]
[1754465850838,1.2224,3642.2,3641.8,2.74584526]
[1754465850991,3.0504,3642.1,3641.7,2.88355281]
[1754465851336,0.1376,3641.9,3641.6,2.74603766]
[1754465851536,0.9224,3641.8,3641.6,2.74603766]
[1754465851826,0.9224,3641.7,3641.6,2.74603766]
[1754465852624,1.2224,3641.7,3641.5,2.74612027]
[1754465852829,0.9224,3641.6,3641.5,2.74612027]
[1754465853386,1.2224,3641.6,3641.5,2.74612027]
[1754465856931,1.2224,3641.6,3641.4,2.88377379]
[1754465857126,0.3,3641.6,3641.4,2.88377379]
[1754465857456,0.9224,3641.5,3641.4,2.88377379]
[1754465857645,0.4515,3641.5,3641.4,2.88377379]
[1754465857849,0.9224,3641.5,3641.4,2.88377379]
[1754465858034,3.0504,3641.5,3641.4,2.88377379]
[1754465860715,3.3504,3641.5,3641.4,2.88377379]
[1754465862158,3.3504,3641.5,3641.4,4.19579751]
[1754465862676,3.297,3642.2,3641.8,2.74589488]
[1754465862839,2.2656,3642.1,3642.0,2.74572861]
[1754465863038,2.7319,3642.1,3642.0,2.74572861]
[1754465863266,3.4961,3642.1,3641.9,2.74579998]
[1754465863469,0.4663,3642.0,3641.9,2.74579998]
[1754465863680,3.297,3642.2,3642.0,2.74574409]
[1754465863880,3.297,3642.2,3642.1,2.7456687]
[1754465864075,5.725,3642.2,3642.1,2.7456687]
[1754465866651,6.6555,3642.2,3642.1,2.7456687]
[1754465868169,6.6555,3642.2,3642.1,4.05769242]
[1754465869071,4.5275,3642.2,3642.1,4.05769242]
[1754465869280,6.6545,3642.2,3642.1,4.05769242]
[1754465869842,6.1903,3642.2,3642.1,4.05769242]
[1754465872202,6.1903,3642.2,3642.1,2.7456687]
[1754465872203,5.724,3642.2,3642.1,2.7456687]
[1754465872409,6.1903,3642.2,3642.1,0.1376]
[1754465872620,6.6555,3642.2,3642.1,2.8832687]
[1754465872760,6.6555,3642.2,3641.4,0.002]
[1754465873092,3.298,3642.2,3642.1,2.7456687]
[1754465873394,5.725,3642.2,3642.1,2.7456687]
[1754465873568,3.598,3642.2,3642.1,2.7456687]
[1754465873896,5.725,3642.2,3642.1,2.7456687]
[1754465874058,5.725,3642.2,3642.1,3.40531106]
[1754465874556,3.598,3642.2,3642.1,3.40531106]
[1754465874761,5.725,3642.2,3642.1,3.40531106]
[1754465875193,5.725,3642.2,3642.1,2.7456687]
[1754465875358,6.6555,3642.2,3642.0,0.1376]
[1754465875562,5.725,3642.2,3642.1,2.7456687]
[1754465876263,6.6555,3642.2,3642.1,2.7456687]
[1754465876773,6.1913,3642.2,3642.1,2.7456687]
[1754465877559,6.6555,3642.2,3642.1,2.7456687]
[1754465877957,4.0643,3642.2,3642.1,2.7456687]
[1754465878158,3.598,3642.2,3642.1,3.30857743]
[1754465878358,5.725,3642.2,3642.1,3.44617743]
[1754465878963,3.598,3642.2,3642.1,3.44617743]
[1754465879162,5.725,3642.2,3642.1,3.44617743]
[1754465881171,3.598,3642.2,3642.1,3.44617743]
[1754465881374,3.598,3642.2,3642.1,0.1376]
[1754465881375,5.425,3642.2,3642.1,0.1376]
[1754465881573,6.3555,3642.2,3642.1,0.1376]
[1754465881877,6.6555,3642.2,3642.0,0.1376]
[1754465882076,0.9305,3642.1,3642.0,0.1376]
[1754465882400,0.9305,3642.1,3641.9,2.74580302]
[1754465882570,2.127,3642.0,3641.9,2.74580302]
[1754465882776,3.0575,3642.0,3641.9,2.74580302]
[1754465882983,3.3575,3642.0,3641.9,2.74580302]
[1754465883188,3.3575,3642.0,3641.7,0.1376]
[1754465883397,0.9305,3641.9,3641.7,0.1376]
[1754465883699,0.9305,3641.9,3641.8,2.74589488]
[1754465883918,1.2305,3641.9,3641.8,2.74589488]
[1754465884118,1.2305,3641.9,3641.7,0.1376]
[1754465884260,2.127,3642.0,3641.7,0.1376]
[1754465884463,0.9305,3641.9,3641.7,0.1376]
[1754465884695,0.9305,3641.9,3641.8,2.74589488]
[1754465884894,2.127,3642.0,3641.9,2.74581948]
[1754465885101,2.5912,3642.0,3641.9,2.74581948]
[1754465885289,2.8912,3642.0,3641.9,2.74581948]
[1754465885468,3.3575,3642.0,3641.9,2.74581948]
[1754465886593,3.3575,3642.0,3641.8,4.05791433]
[1754465886788,2.5912,3642.0,3641.8,4.05791433]
[1754465887112,0.4663,3641.9,3641.8,4.05791433]
[1754465887317,0.3,3641.9,3641.8,4.75206897]
[1754465887525,0.001,3642.2,3642.1,2.7456687]
[1754465887911,2.128,3642.2,3642.1,2.8832687]
[1754465890522,2.5943,3642.2,3642.1,2.8832687]
[1754465891026,2.5933,3642.2,3642.1,2.8832687]
[1754465891229,3.0378,3642.2,3642.1,0.1376]
[1754465891528,3.0378,3642.2,3642.0,0.1376]
[1754465891699,0.9099,3642.1,3641.5,1.31202372]
[1754465891882,0.9099,3642.0,3641.7,2.74592399]
[1754465892086,2.2646,3642.2,3641.7,2.74592399]
[1754465892295,0.9099,3641.9,3641.7,2.74592399]
[1754465892481,3.0359,3641.8,3641.7,2.74592399]
[1754465893109,2.5914,3641.8,3641.7,2.74592399]
[1754465893310,2.126,3641.8,3641.7,3.44029025]
[1754465893894,0.4654,3642.0,3641.8,2.74586647]
[1754465894200,2.126,3641.9,3641.7,3.44031313]
[1754465894399,3.0359,3641.9,3641.7,2.74594687]
[1754465894713,0.4654,3641.8,3641.7,2.74594687]
[1754465895189,2.126,3641.9,3641.8,2.74589488]
[1754465895794,2.5914,3641.9,3641.8,2.74589488]
[1754465896220,3.0359,3641.9,3641.8,2.74589488]
[1754465896623,3.0359,3641.9,3641.7,2.74594254]
[1754465896823,0.9099,3641.8,3641.7,2.74597028]
[1754465897131,2.126,3641.9,3641.8,2.74589488]
[1754465897330,2.126,3641.9,3641.7,3.10839127]
[1754465897628,0.9099,3641.8,3641.7,4.42041499]
[1754465898618,2.126,3641.9,3641.8,2.74589488]
[1754465899730,2.126,3641.9,3641.7,4.42040674]
[1754465899731,2.8914,3641.9,3641.7,4.42040674]
[1754465900037,1.2099,3641.9,3641.8,2.74589488]
[1754465900198,3.3359,3641.9,3641.8,2.74589488]
[1754465900710,2.426,3641.9,3641.8,2.74589488]
[1754465901640,0.3,3641.9,3641.8,2.74589488]
[1754465901939,2.426,3641.9,3641.8,2.74589488]
[1754465902144,2.8914,3641.9,3641.8,2.74589488]
[1754465902738,2.8914,3641.9,3641.7,4.05796476]
[1754465902945,0.4654,3641.8,3641.7,4.05796476]
[1754465903760,2.426,3641.9,3641.8,2.74589488]
[1754465904245,2.8914,3641.9,3641.8,2.74589488]
[1754465905644,2.426,3641.9,3641.8,2.74589488]
[1754465905851,0.3,3641.9,3641.8,2.74589488]
[1754465906021,2.8914,3641.9,3641.8,2.74589488]
[1754465907443,2.426,3641.9,3641.8,2.74589488]
[1754465907646,2.426,3641.9,3641.8,3.44004972]
[1754465907828,2.426,3641.9,3641.8,3.57764972]
[1754465909321,0.3,3641.9,3641.8,4.88967344]
[1754465909550,2.426,3641.9,3641.8,4.88967344]
[1754465910541,0.001,3642.2,3642.1,2.7456687]
[1754465910749,2.127,3642.2,3642.1,3.51558642]
[1754465911731,2.5924,3642.2,3642.1,3.51558642]
[1754465911934,3.0369,3642.2,3641.4,0.002]
[1754465912138,3.0369,3642.2,3641.8,2.74588494]
[1754465912139,0.1386,3642.2,3641.8,2.74588494]
[1754465912469,3.0349,3642.1,3641.4,0.002]
[1754465912617,0.1376,3641.9,3641.4,2.88574156]
[1754465912817,0.3,3641.8,3641.4,3.44935652]
[1754465913021,1.2099,3641.8,3641.5,2.74610644]
[1754465913237,0.3,3641.8,3641.5,2.74610644]
[1754465913438,0.9099,3641.7,3641.5,2.74610644]
[1754465913613,0.9099,3641.6,3641.5,2.74610644]
[1754465914154,1.2099,3641.6,3641.5,3.36586464]
[1754465918061,1.2099,3641.6,3641.5,2.74610644]
[1754465920374,0.7654,3641.6,3641.5,2.74610644]
[1754465920867,0.7654,3641.6,3641.4,0.1396]
[1754465921068,3.0573,3641.5,3641.4,2.88575071]
[1754465921451,3.3573,3641.5,3641.4,2.88575071]
[1754465921654,3.0573,3641.5,3641.4,3.44935401]
[1754465921867,0.9323,3642.1,3641.8,2.74589488]
[1754465922161,2.9082,3642.0,3641.8,2.74582392]
[1754465922337,2.425,3642.0,3641.8,2.74582392]
[1754465922669,0.9323,3641.9,3641.8,2.74582392]
[1754465922973,0.9323,3641.9,3641.7,0.1376]
[1754465923267,0.9323,3641.8,3641.7,2.88357028]
[1754465923470,3.0573,3641.8,3641.7,2.88357028]
[1754465923673,2.9082,3641.8,3641.7,2.88357028]
[1754465924074,2.9082,3641.8,3641.7,0.1376]
[1754465924260,3.3573,3641.8,3641.5,4.05812547]
[1754465924464,0.9323,3641.7,3641.5,4.05812547]
[1754465924865,2.125,3641.8,3641.6,2.74604569]
[1754465925467,0.3,3641.7,3641.6,2.74604569]
[1754465925776,1.2323,3641.7,3641.6,2.74604569]
[1754465926278,1.2323,3641.7,3641.5,4.05811415]
[1754465926573,0.9323,3641.6,3641.5,1.31202372]
[1754465927631,0.9323,3641.6,3641.5,4.05814482]
[1754465928875,1.2323,3641.6,3641.5,4.05814482]
[1754465930675,0.7832,3641.6,3641.5,4.05814482]
[1754465930987,0.3,3641.6,3641.5,4.05814482]
[1754465931158,2.9072,3641.6,3641.5,4.05814482]
[1754465934481,2.424,3641.6,3641.5,4.05814482]
[1754465935674,2.9072,3641.6,3641.5,4.05814482]
[1754465936485,2.9072,3641.6,3641.5,4.06014482]
[1754465939994,2.424,3641.6,3641.5,4.06014482]
[1754465940286,2.424,3641.6,3641.5,4.75494241]
[1754465941291,3.298,3642.1,3641.8,2.74589488]
[1754465941490,3.298,3642.1,3641.9,2.74581948]
[1754465941658,3.298,3642.1,3642.0,2.74574409]
[1754465941863,5.722,3642.1,3642.0,2.74574409]
[1754465942064,3.598,3642.1,3642.0,2.74574409]
[1754465942274,5.721,3642.1,3641.9,2.74579699]
[1754465942484,5.9042,3642.1,3641.8,2.74586987]
[1754465942701,0.4832,3642.0,3641.9,2.74577794]
[1754465942906,0.7832,3642.0,3641.9,2.74577794]
[1754465943111,0.7832,3642.0,3641.7,0.1376]
[1754465943512,0.3,3642.0,3641.7,0.1376]
[1754465943716,0.3,3642.0,3641.7,0.44754213]
[1754465943914,0.3,3642.0,3641.9,2.74581948]
[1754465944374,0.3,3642.0,3641.8,2.74589488]
[1754465944375,1.2323,3642.0,3641.8,2.74589488]
[1754465944713,1.2323,3642.0,3641.8,2.74583175]
[1754465944714,0.4832,3641.9,3641.8,2.74583175]
[1754465945022,0.3,3642.0,3641.9,2.74581948]
[1754465945215,2.423,3642.0,3641.9,2.74581948]
[1754465946623,2.423,3642.0,3641.9,3.24001948]
[1754465946785,2.423,3642.0,3641.9,4.06025384]
[1754465946988,2.423,3642.0,3641.9,3.56605384]
[1754465947722,2.123,3642.0,3641.9,4.65465384]
[1754465948524,3.598,3642.1,3642.0,2.74574409]
[1754465948697,5.421,3642.1,3642.0,4.32167103]
[1754465948902,5.421,3642.1,3642.0,5.63369475]
[1754465949222,5.421,3642.1,3642.0,6.09049475]
[1754465949992,5.421,3642.1,3642.0,5.63369475]
[1754465950544,5.421,3642.1,3642.0,6.09049475]
[1754465950921,0.001,3642.2,3642.1,2.7456687]
[1754465951249,2.124,3642.2,3642.1,7.71185428]
[1754465951622,2.124,3642.2,3642.1,6.92395428]
[1754465951927,3.0679,3642.2,3642.1,1.44962372]
[1754465952133,3.0679,3642.2,3642.1,1.31202372]
[1754465952812,3.0679,3642.2,3641.8,2.88346601]
[1754465953004,0.9439,3642.1,3641.9,2.74581294]
[1754465953340,0.9439,3642.1,3641.8,2.74587029]
[1754465953638,1.2439,3642.0,3641.8,2.74587029]
[1754465953843,0.3,3642.0,3641.9,2.74581948]
[1754465954258,0.3,3642.0,3641.8,2.74586601]
[1754465954467,0.9439,3641.9,3641.8,2.74586601]
[1754465955039,0.9439,3641.9,3641.7,2.88355072]
[1754465955249,2.122,3641.8,3641.7,2.88355072]
[1754465955755,3.0659,3641.8,3641.7,2.88355072]
[1754465956042,3.0659,3641.8,3641.5,0.002]
[1754465956350,1.0815,3641.7,3641.5,0.002]
[1754465956838,0.9439,3641.6,3641.5,0.002]
[1754465957403,1.2439,3641.6,3641.5,0.002]
[1754465957606,3.98994569,3641.6,3641.5,0.002]
[1754465961123,4.53994569,3641.6,3641.5,0.002]
[1754465961892,7.53994569,3641.6,3641.5,0.002]
[1754465965490,6.29619651,3641.4,3641.3,1e-08]
[1754465965698,8.55579651,3641.4,3641.3,1e-08]
[1754465965872,9.49969651,3641.4,3641.3,1e-08]
[1754465966073,9.79969651,3641.4,3641.3,1e-08]
[1754465968798,0.55,3641.0,3640.8,1e-08]
[1754465968995,31.53120308,3640.9,3640.8,1e-08]
[1754465969201,32.47510308,3640.9,3640.8,1e-08]
[1754465969394,32.77510308,3640.9,3640.8,1e-08]
[1754465969781,32.91270308,3640.9,3640.8,1e-08]
[1754465970289,30.79070308,3640.9,3640.8,1e-08]
[1754465970487,7.67807364,3640.9,3640.8,1e-08]
[1754465970690,9.80007364,3640.9,3640.8,1e-08]
[1754465971905,9.91014164,3640.9,3640.8,1e-08]
[1754465979809,3.29679997,3640.6,3640.5,1e-08]
[1754465980108,34.96902941,3640.6,3640.5,1e-08]
[1754465980469,36.32300241,3640.6,3640.5,1e-08]
[1754465984984,3.29695088,3640.4,3640.3,1e-08]
[1754465985185,3.29695088,3640.4,3640.1,0.04000001]
[1754465985186,6.2971018,3640.2,3640.1,1e-08]
[1754465985381,31.66833124,3640.2,3640.1,1e-08]
[1754465985586,32.88133124,3640.2,3640.1,1e-08]
[1754465985805,6.29717727,3640.1,3640.0,0.002]
[1754465986321,7.21017727,3640.1,3640.0,0.002]
[1754465987827,10.10417727,3640.1,3640.0,0.002]
[1754465989140,10.31017433,3640.1,3640.0,0.002]
[1754465990029,6.29732822,3639.9,3639.8,0.002]
[1754465990328,8.55592822,3639.9,3639.8,0.002]
[1754465990908,32.69166766,3639.9,3639.8,0.002]
[1754465991309,6.2974037,3639.8,3639.7,0.002]
[1754465991490,6.7684037,3639.8,3639.7,0.002]
[1754465991692,8.4184037,3639.8,3639.7,0.002]
[1754465992131,8.8894037,3639.8,3639.7,0.002]
[1754465992729,9.3314037,3639.8,3639.7,0.002]
[1754465993409,6.29778116,3639.3,3639.2,0.002]
[1754465993736,8.41878116,3639.3,3639.2,0.002]
[1754465994234,8.55638116,3639.3,3639.2,0.002]
[1754465994791,6.43538116,3639.3,3639.2,0.4757]
[1754465995089,6.43538116,3639.3,3639.2,0.9145]
[1754465995090,8.55638116,3639.3,3639.2,0.9145]
[1754465996096,6.43538116,3639.3,3639.2,0.9145]
[1754465996316,8.55638116,3639.3,3639.2,0.4757]
[1754465996516,8.55638116,3639.3,3639.2,0.002]
[1754466000318,8.55638116,3639.3,3639.2,0.9145]
[1754466000538,6.43538116,3639.3,3639.2,0.4757]
[1754466000739,3.6876,3639.3,3639.2,0.9145]
[1754466000941,3.5731328,3639.9,3639.2,3.66235667]
[1754466001157,0.1376,3639.3,3639.2,2.74985667]
[1754466001320,2.2586,3639.3,3639.2,2.74985667]
[1754466001525,2.2586,3639.3,3639.2,0.002]
[1754466001717,5.55638116,3639.3,3639.2,0.002]
[1754466001917,8.55638116,3639.3,3639.2,0.002]
[1754466002125,8.55638116,3639.3,3639.2,0.4757]
[1754466002411,8.55638116,3639.3,3639.2,0.9145]
[1754466003524,0.1376,3639.3,3639.2,0.9145]
[1754466003737,2.2576,3639.3,3639.2,3.66235667]
[1754466003955,2.2576,3639.3,3639.2,4.3073917]
[1754466004165,2.2576,3639.3,3639.2,1.55953503]
[1754466004656,2.2576,3639.3,3639.2,0.9145]
[1754466005311,2.2576,3639.3,3639.2,3.66235667]
[1754466005735,2.2576,3639.3,3639.2,0.9145]
[1754466006563,3.301,3639.6,3639.2,3.66235667]
[1754466006850,0.1376,3639.4,3639.3,0.9125]
[1754466007032,0.1376,3639.4,3639.2,2.74984069]
[1754466007239,2.12,3639.3,3639.2,3.02882476]
[1754466007648,2.12,3639.3,3639.2,3.94132476]
[1754466008442,2.12,3639.3,3639.2,1.19348407]
[1754466008639,2.12,3639.3,3639.2,3.94134074]
[1754466013924,2.12,3639.3,3639.2,1.19348407]
[1754466014227,2.12,3639.3,3639.2,0.9145]
[1754466014835,2.12,3639.3,3639.2,0.4757]
[1754466015079,2.12,3639.3,3639.2,2.74985667]
[1754466015225,2.12,3639.3,3639.2,3.68095667]
[1754466015428,0.1376,3639.4,3639.2,3.68095667]